Cogmind - Beta 10.2 @@@ ROGUE MODE // 2021.06.15 @ 22:02:06 Player: puncake Result: Destroyed by Y-45 Defender with Heavy Assault Rifle Performance ------------- Evolutions (2) 1000 Regions Visited (4) 800 Robots Destroyed (44) 220 Value Destroyed (1261) 1261 Prototype IDs (4) 80 Alien Tech Used (0) 0 Bonus (124) 124 TOTAL SCORE: 3485 Bonus ------- High Alert Combat Kills 33 Follower Combat Kills 91 Cogmind --------- Core Integrity 0/550 Matter 254/300 Energy 19/100 System Corruption 0% Temperature Cool (9) Movement Core (50) Location -8/Materials Parts ------- > --- POWER (1) -------- (None) > --- PROPULSION (4) --- (None) > --- UTILITY (4) ------ (None) > --- WEAPON (2) ------- (None) > --- INVENTORY (4) ---- Improved Aluminum Leg Small Storage Unit Maneuvering Thrusters EM Pulse Cannon Peak State ------------ > --- POWER ------------ Heavy Ion Engine > --- PROPULSION ------- Light Treads Aluminum Leg Aluminum Leg Armored Wheel > --- UTILITY ---------- Improved Heat Sink Small Storage Unit Improved Medium Armor Plating Component Analysis Suite > --- WEAPON ----------- Improved Medium Laser Makeshift Sword > --- INVENTORY -------- Wheel Experimental Sensor Array Particle Gun Particle Gun Particle Gun Rocket Launcher [Rating: 28] Favorites ----------- Power Ion Engine Engine Ion Engine Power Core Light Nuclear Core Propulsion Aluminum Leg Treads Light Treads Leg Aluminum Leg Wheel Wheel Utility Small Storage Unit Device Improved Heat Sink Storage Small Storage Unit Protection Improved Medium Armor Plating Weapon Makeshift Sword Energy Gun Improved Medium Laser Energy Cannon EM Pulse Cannon Ballistic Gun Light Assault Rifle Ballistic Cannon Improved Light Cannon Launcher Advanced EMP Blaster Slashing Weapon Makeshift Sword Build | -11 -10 -10 -9 -8 ------- Run | Scr Mat Min Mat Mat Slots Evolved 4 | . . . 2 2 Power . | . . . . . Propulsion 2 | . . . 2 . Utility 2 | . . . . 2 Weapon . | . . . . . Parts Attached 54 | 6 8 7 8 25 Power 8 | 1 1 2 1 3 Engine 6 | 1 1 2 1 1 Core 2 | . . . . 2 Reactor . | . . . . . Propulsion 16 | 2 4 1 5 4 Treads 5 | . . . 3 2 Leg 8 | 2 3 1 1 1 Wheel 3 | . 1 . 1 1 Hover . | . . . . . Flight . | . . . . . Utility 9 | 1 1 2 . 5 Device 4 | . . 2 . 2 Storage 1 | 1 . . . . Processor . | . . . . . Hackware . | . . . . . Protection 4 | . 1 . . 3 Artifact . | . . . . . Weapon 21 | 2 2 2 2 13 Energy Gun 6 | 1 . . 2 3 Energy Cannon 3 | . . . . 3 Ballistic Gun 4 | 1 2 1 . . Ballistic Cannon 1 | . . . . 1 Launcher 5 | . . . . 5 Special Weapon . | . . . . . Impact Weapon . | . . . . . Slashing Weapon 2 | . . 1 . 1 Piercing Weapon . | . . . . . Special Melee Weapon . | . . . . . Unidentified Prototypes 4 | . . 1 2 1 Parts Lost 27 | . 5 1 . 21 Power 5 | . 1 1 . 3 Propulsion 9 | . 2 . . 7 Utility 4 | . . . . 4 Weapon 9 | . 2 . . 7 Highest Loss Streak 11 | . 2 1 . 11 Average Slot Usage (%) 87 | . 95 93 98 64 Engine 9 | . 14 8 11 5 Treads 5 | . . . 16 6 Leg 14 | . 25 14 14 9 Wheel 9 | . 2 14 11 4 Device 10 | . . 13 11 11 Storage 11 | . 14 14 11 6 Protection 3 | . 10 . . 5 Energy Gun 4 | . 8 . 10 4 Ballistic Gun 9 | . 18 17 . . Slashing Weapon 8 | . . 10 11 6 Naked Turns 15 | . . . . 15 Heaviest Build 28 | 11 14 16 18 28 Greatest Support 40 | 20 20 10 40 20 Greatest Overweight (x) 3 | . 1 1 1 3 Average Overweight (x) . | . . . . 1 Largest Inventory Capacity 6 | 6 6 6 6 6 Average Capacity 5 | 5 6 6 6 5 Most Carried 6 | 6 6 6 6 6 Average Carried 5 | 3 5 6 5 5 Final Capacity 6 | 6 6 6 6 4 Final Carried 6 | 6 6 6 6 4 Class Distribution -------------------- 92% | Mutant 7% | Scavenger-Mutant Dominant Class ---------------- Mutant | -10/Materials Mutant | -10/Mines Mutant | -9/Materials Mutant | -8/Materials Resources | -11 -10 -10 -9 -8 ----------- Run | Scr Mat Min Mat Mat Matter Collected 794 | 246 172 109 84 183 Remotely . | . . . . . Salvage Created 1569 | . 316 114 243 896 Parts 92 | . 21 10 17 44 Haulers Intercepted 2 | . 1 . 1 . Recyclers Shooed 1 | . . . . 1 Parts Field Recycled . | . . . . . Retrieved Matter . | . . . . . Parts Self-Destructed . | . . . . . Prevented . | . . . . . Kills | -11 -10 -10 -9 -8 ------- Run | Scr Mat Min Mat Mat Combat Hostiles Destroyed 37 | . 8 5 6 18 Melee 20 | . . 3 4 13 Guns 14 | . 8 2 2 2 Cannons 1 | . . . . 1 AOE 1 | . . . . 1 Classes Destroyed 8 | . 4 . 1 3 Worker 2 | . . . . 2 Hauler 2 | . 1 . 1 . Watcher 3 | . 1 . 1 1 Swarmer 13 | . 3 3 4 3 Grunt 14 | . 5 2 . 7 Duelist 1 | . . . . 1 Sentry 7 | . . . 2 5 Hunter 2 | . . . . 2 Best Kill Streak 6 | . 6 3 4 5 Combat Bots Only 6 | . 6 3 4 3 Max Kills in Single Turn 1 | . 1 1 1 1 Gunslinging . | . . . . . Exploded 1 | . . . . 1 Melee 1 | . . 1 1 1 Uniques/NPCs Destroyed . | . . . . . Combat | -11 -10 -10 -9 -8 -------- Run | Scr Mat Min Mat Mat Damage Taken 3570 | . 753 178 385 2254 Core 792 | . 124 33 77 558 Absorbed by Shields . | . . . . . Core Remaining (%) 72 | 100 . 37 80 . Volleys Fired 111 | . 44 10 21 36 Largest 2 | . 2 2 1 1 Hottest 70 | . 70 40 65 65 Shots Fired 152 | . 80 15 21 36 Gun 138 | . 80 15 21 22 Cannon 8 | . . . . 8 Launcher 6 | . . . . 6 Special . | . . . . . Kinetic 72 | . 56 15 . 1 Thermal 67 | . 24 . 21 22 Explosive 2 | . . . . 2 Electromagnetic 11 | . . . . 11 Robot Hit Streak 12 | . 12 2 10 7 Robot Miss Streak 4 | . 3 3 4 2 Penetration Max . | . . . . . Secondary Targets . | . . . . . Shots Hit Robots 145 | . 54 12 24 55 Core Hits 68 | . 22 8 10 28 Critical Hits . | . . . . . Critical Kills . | . . . . . Critical Parts Destroyed . | . . . . . Melee Attacks 63 | . . 9 17 37 Impact . | . . . . . Slashing 63 | . . 9 17 37 Piercing . | . . . . . Sneak Attacks 1 | . . . . 1 Combat Hostiles . | . . . . . Follow-up Attacks . | . . . . . Damage Inflicted 3258 | . 519 270 578 1891 Guns 1147 | . 517 66 287 277 Cannons 167 | . . . . 167 Explosions 408 | . . . . 408 Melee 1522 | . . 204 291 1027 Ramming 14 | . 2 . . 12 Kinetic 410 | . 329 66 . 15 Thermal 768 | . 188 . 287 293 Explosive 58 | . . . . 58 Electromagnetic 486 | . . . . 486 Impact . | . . . . . Slashing 1522 | . . 204 291 1027 Piercing . | . . . . . Highest Corruption 3 | . . 3 . . Average Corruption 3 | . . 3 . . Corruption Purged . | . . . . . Effects 13 | . . 13 . . Message Errors 3 | . . 3 . . Matter Fused 4 | . . 4 . . Heat Flow Errors 1 | . . 1 . . Energy Discharges 3 | . . 3 . . Data Loss (minor) 2 | . . 2 . . Overload Shots . | . . . . . Overflow Damage 191 | . . 27 58 106 Projectiles . | . . . . . Explosions 29 | . . . . 29 Melee 162 | . . 27 58 77 Knockbacks . | . . . . . Impact . | . . . . . Kinetic . | . . . . . Secondary . | . . . . . Self-Inflicted Damage 190 | . 1 . . 189 Shots 7 | . . . . 7 Rammed 4 | . 1 . . 3 Targets Rammed 4 | . 1 . . 3 Kicked . | . . . . . Crushed . | . . . . . Highest Temperature 213 | . 213 190 5 59 Average Temperature 55 | . 67 91 2 23 Received Heat Transfer 1203 | . 303 69 93 738 Siege Activations . | . . . . . Robots Corrupted 1 | . . . . 1 Combat Hostiles 1 | . . . . 1 Parts Fried 3 | . . . . 3 Impact Corruptions . | . . . . . Robots Melted . | . . . . . Combat Hostiles . | . . . . . Parts Melted 4 | . 1 . 3 . Heat Transferred 1863 | . 555 . 629 679 Parts Sabotaged . | . . . . . Parts Stolen . | . . . . . Parts Stripped . | . . . . . Power Chain Reactions 2 | . . . . 2 Missiles Intercepted . | . . . . . Alert | -11 -10 -10 -9 -8 ------- Run | Scr Mat Min Mat Mat Peak Influence 458 | . 194 135 160 458 Initial 75 | . . 75 14 50 Average 110 | . 72 70 53 259 Maximum Alert Level 2 | . . . . 2 Low Security (%) 84 | 100 100 100 100 33 Level 1 10 | . . . . 42 Level 2 5 | . . . . 23 Level 3 . | . . . . . Level 4 . | . . . . . Level 5 . | . . . . . High Security . | . . . . . Max Security . | . . . . . Squads Dispatched 11 | . 2 . 1 8 Investigation 5 | . 1 . 1 3 Extermination . | . . . . . Reinforcement 4 | . 1 . . 3 Assault . | . . . . . Garrison 2 | . . . . 2 Intercept . | . . . . . Construction Impeded 1 | . . . . 1 Haulers Reinforced . | . . . . . Stealth | -11 -10 -10 -9 -8 --------- Run | Scr Mat Min Mat Mat Distress Signals 4 | . . . 1 3 Communications Jammed . | . . . . . Distress Signals . | . . . . . Times Spotted 71 | . 11 9 12 39 Peak Tracking Total 13 | . 8 2 5 13 Tactical Retreats 9 | . . 2 2 5 Traps | -11 -10 -10 -9 -8 ------- Run | Scr Mat Min Mat Mat Traps Triggered 8 | . 1 . 2 5 Indirectly . | . . . . . Trap Hack Attempts . | . . . . . Triggered . | . . . . . Disarmed . | . . . . . Reprogrammed . | . . . . . Reused . | . . . . . Traps Extracted . | . . . . . Installed . | . . . . . Triggered . | . . . . . Machines | -11 -10 -10 -9 -8 ---------- Run | Scr Mat Min Mat Mat Machines Disabled . | . . . . . Max in Single Turn . | . . . . . Machines Sabotaged . | . . . . . Garrisons Compromised . | . . . . . Overloaded Fab Kills . | . . . . . Fab Network Shutdowns . | . . . . . Hacking | -11 -10 -10 -9 -8 --------- Run | Scr Mat Min Mat Mat Machines Accessed 6 | . 1 1 3 1 Terminals 4 | . . 1 3 . Fabricators . | . . . . . Repair Stations . | . . . . . Recycling Units 2 | . 1 . . 1 Scanalyzers . | . . . . . Garrison Access . | . . . . . Total Hacks 11 | . 1 2 4 4 Successful 5 | . . 1 2 2 Failed 6 | . 1 1 2 2 Catastrophic 1 | . . . 1 . Database Lockouts . | . . . . . Manual 2 | . . . 2 . Terminals 6 | . . 2 4 . Fabricators . | . . . . . Repair Stations . | . . . . . Recycling Units 5 | . 1 . . 4 Scanalyzers . | . . . . . Garrison Access . | . . . . . Terminal Hacks 2 | . . 1 1 . Branch Access Points 1 | . . . 1 . Dispatch Records 1 | . . 1 . . Fabricator Hacks . | . . . . . Repair Station Hacks . | . . . . . Recycling Unit Hacks 2 | . . . . 2 Retrieve Matter 1 | . . . . 1 Retrieve Components 1 | . . . . 1 Scanalyzer . | . . . . . Garrison Access Hacks . | . . . . . Unauthorized Hacks 1 | . . . 1 . Terminals 1 | . . . 1 . Track 1 | . . . 1 . Fabricators . | . . . . . Repair Stations . | . . . . . Recycling Units . | . . . . . Scanalyzers . | . . . . . Garrison Access . | . . . . . Data Cores Recovered . | . . . . . Used . | . . . . . Hacking Detections 4 | . 1 . 2 1 Full Trace Events 1 | . . . . 1 Feedback Events . | . . . . . Feedback Blocked . | . . . . . Robot Schematics Acquired . | . . . . . Robots Built . | . . . . . Matter . | . . . . . Time . | . . . . . Total Robot Build Rating . | . . . . . Part Schematics Acquired . | . . . . . Parts Built . | . . . . . Matter . | . . . . . Time . | . . . . . Total Part Build Rating . | . . . . . Parts Repaired . | . . . . . Time . | . . . . . Parts Recycled . | . . . . . Recycled Matter . | . . . . . Retrieved Matter . | . . . . . Retrieved Components 5 | . . . . 5 Parts Scanalyzed . | . . . . . Part Schematics Acquired . | . . . . . Parts Damaged . | . . . . . Bothacking | -11 -10 -10 -9 -8 ------------ Run | Scr Mat Min Mat Mat Used RIF Installer . | . . . . . Robots Hacked . | . . . . . Non-combat . | . . . . . Combat . | . . . . . Robot Hacks Applied . | . . . . . Relay Couplers Released . | . . . . . Robots Rewired . | . . . . . Allies Hacked . | . . . . . Hacks Repelled . | . . . . . Allies | -11 -10 -10 -9 -8 -------- Run | Scr Mat Min Mat Mat Total Allies 3 | . . 3 . . Largest Group 3 | . . 3 3 . Highest-Rated Group 40 | . . 40 40 . Highest-Rated Ally 16 | . . 16 16 . Total Orders . | . . . . . Ally Attacks 20 | . . 3 17 . Total Damage 254 | . . 40 214 . Kills 4 | . . 1 3 . Allies Corrupted . | . . . . . Allies Melted . | . . . . . Intel | -11 -10 -10 -9 -8 ------- Run | Scr Mat Min Mat Mat Robot Analysis Total . | . . . . . Derelict Logs Recovered 3 | . . 3 . . Drone Launches . | . . . . . Drone Recoveries . | . . . . . Exploration | -11 -10 -10 -9 -8 ------------- Run | Scr Mat Min Mat Mat Turns Passed 2533 | 79 361 945 538 610 Spaces Moved 1482 | 54 181 634 284 329 Core 139 | 5 . . . 134 Treads 197 | . . . 171 26 Legs 902 | 49 175 634 20 24 Wheels 244 | . 6 . 93 145 Hover . | . . . . . Flight . | . . . . . Fastest Speed 50 | 50 90 120 90 50 Average Speed 125 | 113 121 136 139 94 Slowest Speed 200 | 120 150 150 160 200 Overloaded Moves . | . . . . . Propulsion Burnouts . | . . . . . Robots Hopped . | . . . . . Cave-ins Triggered . | . . . . . Exploration Rate (%) 41 | 4 42 98 24 39 Regions Visited 4 Branch Regions 1 Pre-discovered Areas 1 | . . 1 . . Known Exits Taken . | . . . . . Unknown Exits Taken 4 | 1 1 1 1 . Scrap Searched 1 | . . 1 . . Spaces Dug . | . . . . . Terrain Destroyed 18 | . . . . 18 Melee . | . . . . . Projectile . | . . . . . AOE 18 | . . . . 18 Terrain Rammed . | . . . . . Walls Destroyed . | . . . . . Machines Disabled . | . . . . . Actions | -11 -10 -10 -9 -8 --------- Run | Scr Mat Min Mat Mat Total 1936 | 71 248 694 388 535 Wait 175 | . 9 28 52 86 Move 1478 | 53 180 633 283 329 Hop . | . . . . . Pick Up 28 | 12 5 1 2 8 Fast Attach 19 | . 1 3 4 11 Attach 26 | 6 5 . 2 13 Detach 6 | . . . . 6 Swap 9 | . 2 4 2 1 Drop 17 | . 1 6 5 5 Fire 111 | . 44 10 21 36 Melee 63 | . . 9 17 37 Ram 4 | . 1 . . 3 Kick . | . . . . . Crush . | . . . . . Escape Stasis . | . . . . . Rewire . | . . . . . Trap . | . . . . . Miscellaneous . | . . . . . Route ------- -11/Scrapyard -10/Materials -10/Mines -9/Materials (discovered 2 exits: *Mat / Min) -8/Materials History --------- Turn | Location | Event 4 | -11/Scrapyard | Discovered new exit (range 15) 80 | -11/Scrapyard | Entered Materials 254 | -10/Materials | Discovered new exit (range 15) 359 | -10/Materials | Build established: Mutant 441 | -10/Materials | Entered Mines 492 | -10/Mines | Found a damaged Exp. Sensor Array with a note attached 495 | -10/Mines | Found Prototype Device 495 | -10/Mines | Identified Exp. Sensor Array 651 | -10/Mines | A weapon hastily lodged in a ceiling crevice suddenly fell to the ground 672 | -10/Mines | Learned Materials garrison access intel 722 | -10/Mines | Received a Rocket Launcher from a helpful Derelict 745 | -10/Mines | Learned location of Storage (-8) 795 | -10/Mines | Learned Materials terminal intel 820 | -10/Mines | Core integrity fell below 50% 908 | -10/Mines | Learned Materials security intel 1097 | -10/Mines | Assisted by bots powering up and referring to "LRC-V3" 1329 | -10/Mines | Discovered new exit (range 8) 1335 | -10/Mines | Joined a pair of Derelicts in attacking an 0b10 outpost 1386 | -10/Mines | Entered Materials 1386 | -9/Materials | Accompanied by 3 allies 1386 | -9/Materials | Evolved 2 slots: Propulsion x2 1388 | -9/Materials | Loaded intel: 12 terminal locations 1826 | -9/Materials | Identified exit to Mines 1827 | -9/Materials | Discovered new exit (range 16) 1924 | -9/Materials | Entered another Materials area 1924 | -8/Materials | Evolved 2 slots: Utility x2 1925 | -8/Materials | Loaded intel: 1 garrison access location 2113 | -8/Materials | Lost 3 parts (1n1u1w) 2318 | -8/Materials | Lost 3 parts (2n1w) 2345 | -8/Materials | Garrison activated, responded to threat 2361 | -8/Materials | Core integrity fell below 50% 2387 | -8/Materials | Lost 11 parts (2p2n3u4w) 2434 | -8/Materials | Core integrity fell below 20% 2534 | -8/Materials | Destroyed by Y-45 Defender with Heavy Assault Rifle Last Messages --------------- 02433_ Destroyed Melee Analysis Suite. 02433_ Chain reaction triggered in Lgt. Nuclear Core. 02437_ Katana fried. 02437_ Imp. Ion Engine fried. 02437_ L-31 Rogue destroyed. 02437_ Destroyed Particle Gun. 02438_ G-47 Trooper system terminally corrupted. 02440_ ALERT: Hostiles spotted, dispatching reinforcements to Terminal M006. 02441_ Acquired Imp. Aluminum Leg. 02447_ Adv. EMP Blaster destroyed. 02455_ Lgt. Nuclear Core destroyed. 02456_ Adv. Heat Sink fried. 02456_ G-50 Soldier destroyed. 02476_ T-07 Excavator is excavating. 02505_ Triggered Alarm Trap. 02505_ An alarm sounds. 02505_ ALERT: Alarm triggered, dispatching investigation squad. 02512_ Slammed into A-02 Transporter. 02523_ Lgt. Treads destroyed. Map ----- +----------------------------------------------------+ | ???????????????# """ #?# #????????# """ #?? | | ???????????????# """ #?# #????????# """ #?? | | ????????######## """ !#?# #????????# #?? | | ????????# # """ ??# #????????# #?? | | ????????# # ????# #???########+####?? | | ????????# ##+####### ##### ### ##### | | ????????# / | | ????????# ## ######## #### ### ##### | | ????????# ## #?######! !#??##+##?#####???# | | ????????###+##### #? #! !#?? ?????????# | | ????????????????# # ##!!!!###! """#????????# | | ????????# ### # #######?# """#????????# | | ????????+ + #???????# ! """#????????# | | ????????# ### # #???????# #????????# | | ????????????????# # #???????# | #????????# | | ????????????????# #?######???????########????????# | | ????????????????# #??#???????????????????????????# | | ????????????????# #??# ??????????????????????????# | | ????????????????# #??# ??###??????????????????#### | | ????????????????# #?##g### #???????????????????+ | | ????????????????# #?# [ #???????????????????# | | ????????????????# #?# #???????????????????# " | | ????????????????# #?#!!! #???????????????????# " | | ????????????????# #?#!!Y #???????????????????# " | | ????????????????# #?#!!! #######?????????????# | | ????????????????# #?# @ # T #???????# ##### | | ???????########## ########+# #???????+ = | | ???????# + """ #???????# ##### | | ???????# # """ #???????????????? | | ???????# # """ #???????????????? | | ???????# # #??????????????## | | ???????# + #??????????????# | | ???????# # #??????????????# | | ???????+ # // #??????????????# | | ???????###### ############ / #????#####?????# | | ????????????# ???????????# #????#// #?????# | | ????????????# ???????????#] #????#// ####### | | ????????????# ???????????# #####????#!! ## | | ????????????# ???????????###????????#! | | ????????????# ??????????????????????#!! | | ????????????# ???????????????????????#! | | ????????????+ ???????????????????????##### ## | | ??????????????????????????????????????????## ### | | ???????????????????????????????????????????# #?# | | ???????????????????????????????????????????# #?# | | ???????????????????????????????????????????# #?# | | ???????????????????????????????????????????# #?# | | ???????????????????????????????????????????#####?# | | ?????????????????????????????????????????????????# | | ?????????????????????????????????????????????????# | +----------------------------------------------------+ Best States ------------- Heat Dissipation 45 Energy Generation 14 Energy Capacity 280 Matter Stores 300 Matter Capacity 300 Sight Range 16 Terrain Scan Density 10 Armor Coverage 225 Utility Shielding 33 Evasion (%) 50 Recoil Reduction 2 Item Schematics ----------------- None Robot Schematics ------------------ None Fabricated ------------ Nothing Alien Tech Used ----------------- None Achievements -------------- None Challenges ------------ None Game ------ Seed ControlBiomechanicalBeam Manual? 0 Play Time 00:24:49 Cumulative 13.9 hours Start 2021.06.15 @ 21:33:20 End 2021.06.15 @ 22:02:06 Sessions 1 Manual Loads 0 Difficulty Rogue Special Mode None Game No. 12 Rogue 12 Adventurer 0 Explorer 0 Win Type - Total 0 Types 0/0/0/0/0/0/0/0/0 Lore% 14 Gallery% 33 Achievement% 22 Wizard Run 0 Options --------- ASCII 1 Keyboard 0 Movement Mouse Keybinds 0 Fullscreen 2 Font 18/X11 Map View 76x50 Tactical HUD 1 Map Filters NONE Filters NONE Steam 1 RUN: 25d4b56e-6d0f-4790-b788-6294e7e7f4a0